Cogmind - Beta 12 @@@ ROGUE MODE // 2023.10.10 @ 15:45:28 Player: Trantor Result: Destroyed by EX-DEC with AWS/EX-DEC Performance ------------- Evolutions (0) 0 Regions Visited (3) 600 Robots Destroyed (37) 185 Value Destroyed (615) 615 Prototype IDs (27) 540 Alien Tech Used (0) 0 Bonus (-167) -167 TOTAL SCORE: 1773 Bonus ------- Aligned with FarCom 300 Friendly Fire -467 Cogmind --------- Core Integrity 0/250 Matter 208/300 Energy 170/170 System Corruption 7% Temperature Cool (0) Movement Walking (210) Ox1 Location -10/Exiles Parts ------- > --- POWER (1) -------- Makeshift Power Source > --- PROPULSION (2) --- Makeshift Leg Makeshift Leg > --- UTILITY (2) ------ High-capacity Storage Unit Advanced Transmission Jammer > --- WEAPON (2) ------- Light Cannon > --- INVENTORY (20) --- Light Neutrino Core Light Treads Aluminum Leg Makeshift Leg Makeshift Leg Makeshift Leg VTOL Module VTOL Module VTOL Module VTOL Module Medium Matter Pod (100) EX Chip 1 EX Chip 2 EX Chip 2 EX Chip 2 Advanced Component Analysis Suite Advanced Recalibrator Grenade Launcher Grenade Launcher Makeshift Hammer Peak State ------------ > --- POWER ------------ Light Neutrino Core > --- PROPULSION ------- Makeshift Leg Makeshift Leg > --- UTILITY ---------- High-capacity Storage Unit Advanced Transmission Jammer > --- WEAPON ----------- Light Cannon > --- INVENTORY -------- Light Nuclear Core Light Treads Aluminum Leg Aluminum Leg Makeshift Leg VTOL Module VTOL Module VTOL Module VTOL Module Medium Matter Pod EX Chip 1 EX Chip 2 EX Chip 2 EX Chip 2 Advanced Component Analysis Suite Advanced Recalibrator Light Assault Rifle Grenade Launcher Grenade Launcher Makeshift Hammer [Rating: 29] Favorites ----------- Power Light Nuclear Core Engine Light Ion Engine Power Core Light Nuclear Core Propulsion Light Treads Treads Light Treads Leg Aluminum Leg Wheel Wheel Utility High-capacity Storage Unit Device Advanced Transmission Jammer Storage High-capacity Storage Unit Protection Light Armor Plating Weapon Light Cannon Energy Gun EM Pulse Gun Ballistic Gun Light Assault Rifle Ballistic Cannon Light Cannon Launcher Rocket Launcher Build | -11 -10 -10 -10 ------- Run | Jun Mat Min Exi Slots Evolved . | . . . . Power . | . . . . Propulsion . | . . . . Utility . | . . . . Weapon . | . . . . Parts Attached 58 | . 29 6 23 Power 10 | . 6 1 3 Engine 8 | . 6 . 2 Core 2 | . . 1 1 Reactor . | . . . . Propulsion 19 | . 9 2 8 Treads 8 | . 4 . 4 Leg 6 | . 2 . 4 Wheel 5 | . 3 2 . Hover . | . . . . Flight . | . . . . Utility 8 | . 3 . 5 Device 3 | . . . 3 Storage 2 | . 2 . . Processor . | . . . . Hackware . | . . . . Protection 3 | . 1 . 2 Artifact . | . . . . Weapon 21 | . 11 3 7 Energy Gun 1 | . 1 . . Energy Cannon . | . . . . Ballistic Gun 2 | . 1 . 1 Ballistic Cannon 12 | . 8 2 2 Launcher 6 | . 1 1 4 Special Weapon . | . . . . Impact Weapon . | . . . . Slashing Weapon . | . . . . Piercing Weapon . | . . . . Special Melee Weapon . | . . . . Unidentified Prototypes 1 | . . . 1 Parts Lost 12 | . . . 12 Power 1 | . . . 1 Propulsion 5 | . . . 5 Utility 2 | . . . 2 Weapon 4 | . . . 4 Highest Loss Streak 9 | . . . 9 To Critical Strikes . | . . . . Average Slot Usage (%) 92 | . 92 100 87 Engine 5 | . 13 1 . Core 7 | . . 12 12 Treads 11 | . 9 14 12 Leg 4 | . 8 . 4 Wheel 9 | . 9 14 7 Device 1 | . . . 5 Storage 14 | . 14 14 14 Protection 8 | . 8 14 4 Ballistic Gun 1 | . 3 . . Ballistic Cannon 21 | . 20 27 18 Launcher 3 | . 1 . 7 Naked Turns . | . . . . Heaviest Build 56 | 11 54 54 56 Greatest Support 40 | 20 20 16 40 Greatest Overweight (x) 9 | . 9 5 5 Average Overweight (x) 3 | . 2 4 3 Largest Inventory Capacity 20 | 8 20 20 20 Average Capacity 19 | 8 17 20 20 Most Carried 20 | 6 20 20 20 Average Carried 16 | 6 15 20 16 Final Capacity 20 | 8 20 20 20 Final Carried 20 | 6 20 20 20 Class Distribution -------------------- 93% | Mutant 6% | Scavenger-Mutant Dominant Class ---------------- Mutant | -10/Materials Mutant | -10/Mines Mutant | -10/Exiles Resources | -11 -10 -10 -10 ----------- Run | Jun Mat Min Exi Matter Collected 1517 | 200 623 253 441 Remotely . | . . . . Salvage Created 815 | . 411 233 171 Parts 77 | . 38 23 16 Haulers Intercepted 2 | . 2 . . Recyclers Shooed . | . . . . Parts Field Recycled . | . . . . Retrieved Matter . | . . . . Parts Self-Destructed . | . . . . Prevented . | . . . . Kills | -11 -10 -10 -10 ------- Run | Jun Mat Min Exi Combat Hostiles Destroyed 19 | . 9 9 1 Guns 1 | . . . 1 Cannons 15 | . 9 6 . AOE 3 | . . 3 . Classes Destroyed 11 | . 6 2 3 Worker 1 | . . 1 . Builder 2 | . 2 . . Tunneler 1 | . . 1 . Hauler 2 | . 2 . . Recycler 2 | . 2 . . Turret 1 | . . . 1 Watcher 2 | . 2 . . Swarmer 9 | . 6 3 . Grunt 9 | . 3 6 . Zionite 8 | . . . 8 Assembled 4 | . . . 4 Best Kill Streak 4 | . 4 3 2 Combat Bots Only 3 | . 3 3 1 Max Kills in Single Turn 3 | . 1 2 3 Gunslinging . | . . . . Exploded 2 | . . 2 . Melee . | . . . . Uniques/NPCs Destroyed 3 | . . . 3 EX-HEX (-10/Exiles) 8R-AWN (-10/Exiles) EX-BIN (-10/Exiles) Combat | -11 -10 -10 -10 -------- Run | Jun Mat Min Exi Damage Taken 2027 | . 237 197 1593 Core 254 | . 23 56 175 Absorbed by Shields . | . . . . Regen/Repaired (Parts) 173 | . 173 . . Core Remaining (%) 100 | 100 . . . Volleys Fired 112 | . 38 17 57 Largest 2 | . 2 2 2 Hottest 70 | . 70 70 70 Shots Fired 170 | . 71 32 67 Gun 17 | . 12 . 5 Cannon 136 | . 57 30 49 Launcher 17 | . 2 2 13 Special . | . . . . Kinetic 150 | . 66 30 54 Thermal . | . . . . Explosive 17 | . 2 2 13 Electromagnetic 3 | . 3 . . Robot Hit Streak 7 | . 3 7 6 Robot Miss Streak 6 | . 6 3 4 Penetration Max . | . . . . Secondary Targets . | . . . . Shots Hit Robots 80 | . 30 18 32 Core Hits 57 | . 18 15 24 Critical Kills . | . . . . Critical Parts Destroyed . | . . . . Critical Strikes 3 | . 2 . 1 Blast 3 | . 2 . 1 Melee Attacks . | . . . . Impact . | . . . . Slashing . | . . . . Piercing . | . . . . Sneak Attacks . | . . . . Combat Hostiles . | . . . . Follow-up Attacks . | . . . . Damage Inflicted 2170 | . 532 574 1064 Guns 79 | . 58 . 21 Cannons 1288 | . 474 294 520 Explosions 803 | . . 280 523 Melee . | . . . . Ramming . | . . . . Kinetic 1352 | . 517 294 541 Thermal . | . . . . Explosive 803 | . . 280 523 Electromagnetic 15 | . 15 . . Impact . | . . . . Slashing . | . . . . Piercing . | . . . . Highest Corruption 6 | . 1 1 6 Average Corruption 1 | . 1 1 1 Corruption Purged . | . . . . Corruption Blocked . | . . . . Effects 26 | . 9 6 11 Message Errors 9 | . 3 1 5 Matter Fused 6 | . 1 3 2 Heat Flow Errors 2 | . 1 . 1 Energy Discharges 2 | . 1 . 1 Parts Fused 2 | . . 1 1 Data Loss (minor) 3 | . 2 1 . Alerts 1 | . . . 1 Weapon Failures 1 | . 1 . . Overload Shots . | . . . . Overflow Damage 46 | . 15 . 31 Projectiles 46 | . 15 . 31 Explosions . | . . . . Melee . | . . . . Knockbacks 15 | . 7 2 6 Impact . | . . . . Kinetic 14 | . 6 2 6 Secondary 1 | . 1 . . Self-Inflicted Damage 24 | . . 24 . Shots 1 | . . 1 . Rammed . | . . . . Targets Rammed . | . . . . Kicked . | . . . . Crushed . | . . . . Highest Temperature 258 | . 258 108 104 Average Temperature 36 | . 41 31 28 Received Heat Transfer 108 | . 24 84 . Siege Activations . | . . . . Robots Corrupted . | . . . . Combat Hostiles . | . . . . Parts Fried . | . . . . Impact Corruptions . | . . . . Robots Melted . | . . . . Combat Hostiles . | . . . . Parts Melted . | . . . . Heat Transferred . | . . . . Parts Sabotaged . | . . . . Parts Stolen . | . . . . Parts Stripped . | . . . . Power Chain Reactions . | . . . . Missiles Intercepted . | . . . . Alert | -11 -10 -10 -10 ------- Run | Jun Mat Min Exi Peak Influence 208 | . 155 208 . Initial 8 | . . 8 . Average 56 | . 54 58 . Maximum Alert Level 1 | . . 1 . Low Security (%) 94 | 100 100 85 . Level 1 5 | . . 14 . Level 2 . | . . . . Level 3 . | . . . . Level 4 . | . . . . Level 5 . | . . . . High Security . | . . . . Max Security . | . . . . Squads Dispatched 1 | . 1 . . Investigation 1 | . 1 . . Extermination . | . . . . Reinforcement . | . . . . Assault . | . . . . Garrison . | . . . . Intercept . | . . . . Searches Triggered . | . . . . Construction Impeded . | . . . . Haulers Reinforced . | . . . . Active Scanning Responses . | . . . . Cargo Convoy Interrupts . | . . . . Stealth | -11 -10 -10 -10 --------- Run | Jun Mat Min Exi Distress Signals 1 | . 1 . . Communications Jammed . | . . . . Distress Signals . | . . . . Times Spotted 58 | . 19 9 30 Peak Tracking Total 5 | . 4 3 5 Tactical Retreats 6 | . 1 . 5 Traps | -11 -10 -10 -10 ------- Run | Jun Mat Min Exi Traps Triggered 5 | . 5 . . Indirectly . | . . . . Trap Hack Attempts . | . . . . Triggered . | . . . . Disarmed . | . . . . Reprogrammed . | . . . . Reused . | . . . . Traps Extracted . | . . . . Installed . | . . . . Triggered . | . . . . Machines | -11 -10 -10 -10 ---------- Run | Jun Mat Min Exi Machines Disabled 11 | . . 2 9 Max in Single Turn 2 | . . 1 2 Machines Repaired . | . . . . Machines Sabotaged . | . . . . Overloaded Fab Kills . | . . . . Hacking | -11 -10 -10 -10 --------- Run | Jun Mat Min Exi Machines Accessed 15 | . 9 1 5 Terminals 9 | . 8 1 . Fabricators . | . . . . Repair Stations 1 | . 1 . . Recycling Units . | . . . . Scanalyzers . | . . . . Garrison Access . | . . . . Total Hacks 66 | . 34 4 28 Successful 49 | . 21 . 28 Failed 16 | . 12 4 . Catastrophic 2 | . 2 . . Database Lockouts 1 | . 1 . . Manual 26 | . 21 4 1 Terminals 32 | . 28 4 . Fabricators . | . . . . Repair Stations 6 | . 6 . . Recycling Units . | . . . . Scanalyzers . | . . . . Garrison Access . | . . . . Terminal Hacks 39 | . 11 . 28 Record 27 | . . . 27 Part Schematic 4 | . 4 . . Robot Analysis 3 | . 3 . . Prototype ID Bank 2 | . 2 . . Branch Access Points 1 | . 1 . . Emergency Access Points 1 | . 1 . . EX-Prototype ID Bank 1 | . . . 1 Fabricator Hacks . | . . . . Repair Station Hacks 6 | . 6 . . Scan Component 3 | . 3 . . Repair 3 | . 3 . . Recycling Unit Hacks . | . . . . Scanalyzer . | . . . . Garrison Access Hacks . | . . . . Unauthorized Hacks 4 | . 4 . . Terminals 4 | . 4 . . Botnet 3 | . 3 . . Operators 1 | . 1 . . Fabricators . | . . . . Repair Stations . | . . . . Recycling Units . | . . . . Scanalyzers . | . . . . Garrison Access . | . . . . Data Cores Recovered . | . . . . Used . | . . . . Hacking Detections 9 | . 8 1 . Full Trace Events 2 | . 1 1 . Feedback Events 1 | . 1 . . Corruption 1 | . 1 . . Feedback Blocked . | . . . . Robot Schematics Acquired . | . . . . Robots Built . | . . . . Authchips . | . . . . Time . | . . . . Total Robot Build Rating . | . . . . Part Schematics Acquired 3 | . 3 . . Parts Built . | . . . . Authchips . | . . . . Time . | . . . . Total Part Build Rating . | . . . . Parts Repaired 3 | . 3 . . Time 78 | . 78 . . Parts Recycled . | . . . . Recycled Matter . | . . . . Retrieved Matter . | . . . . Retrieved Components . | . . . . Parts Scanalyzed . | . . . . Part Schematics Acquired . | . . . . Parts Damaged . | . . . . Bothacking | -11 -10 -10 -10 ------------ Run | Jun Mat Min Exi Used RIF Installer . | . . . . Robots Hacked . | . . . . Non-combat . | . . . . Combat . | . . . . Robot Hacks Applied . | . . . . Relay Couplers Released . | . . . . Fabnet Peak Effective % . | . . . . Robots Rewired . | . . . . Allies Hacked . | . . . . Hacks Repelled . | . . . . Allies | -11 -10 -10 -10 -------- Run | Jun Mat Min Exi Total Allies . | . . . . Largest Group . | . . . . Highest-Rated Group . | . . . . Highest-Rated Ally . | . . . . Total Orders . | . . . . Ally Attacks 14 | . . . 14 Total Damage 731 | . . . 731 Kills 5 | . . . 5 Allies Corrupted . | . . . . Allies Melted . | . . . . Turrets Deployed 3 | . . . 3 Intel | -11 -10 -10 -10 ------- Run | Jun Mat Min Exi Robot Analysis Total 3 | . 3 . . Derelict Logs Recovered 1 | . . 1 . Drone Launches . | . . . . Drone Recoveries . | . . . . Exploration | -11 -10 -10 -10 ------------- Run | Jun Mat Min Exi Turns Passed 4671 | 3 1777 1134 1757 Spaces Moved 2402 | 3 945 658 796 Core 2 | . 2 . . Treads 186 | . 19 . 167 Legs 334 | 3 248 . 83 Wheels 1880 | . 676 658 546 Hover . | . . . . Flight . | . . . . Fastest Speed 115 | 120 115 145 155 Average Speed 167 | 120 153 154 196 Slowest Speed 500 | 120 500 155 320 Overloaded Moves . | . . . . Propulsion Burnouts . | . . . . Robots Hopped . | . . . . Cave-ins Triggered . | . . . . Exploration Rate (%) 69 | 2 100 100 75 Regions Visited 3 Branch Regions 2 Pre-discovered Areas 1 | . . . 1 Known Exits Taken 1 | . 1 . . Unknown Exits Taken 2 | 1 . 1 . Scrap Searched 2 | . . 2 . Spaces Dug . | . . . . Terrain Destroyed 39 | . 19 10 10 Melee . | . . . . Projectile . | . . . . AOE 39 | . 19 10 10 Terrain Rammed . | . . . . Walls Destroyed . | . . . . Machines Disabled . | . . . . Actions | -11 -10 -10 -10 --------- Run | Jun Mat Min Exi Total 2876 | 2 1200 746 928 Wait 220 | . 146 59 15 Move 2399 | 2 944 657 796 Hop . | . . . . Pick Up 46 | . 26 2 18 Fast Attach 25 | . 16 1 8 Attach 10 | . 1 . 9 Detach 4 | . 1 . 3 Swap 23 | . 12 5 6 Drop 37 | . 16 5 16 Fire 112 | . 38 17 57 Melee . | . . . . Ram . | . . . . Kick . | . . . . Crush . | . . . . Escape Stasis . | . . . . Rewire . | . . . . Trap . | . . . . Miscellaneous . | . . . . Route ------- -11/Junkyard -10/Materials (discovered 4 exits: [*Mat x3] / *Min) -10/Mines (discovered 3 exits: [*Mat x2] / *Exi) -10/Exiles (discovered 1 exit: [*Min]) History --------- Turn | Location | Event 1 | -11/Junkyard | Discovered new exit (range 3) 4 | -11/Junkyard | Entered Materials 297 | -10/Materials | Discovered new exit (range 4) 310 | -10/Materials | Build established: Mutant 446 | -10/Materials | Identified exit to Mines 1048 | -10/Materials | Discovered new exit (range 10) 1263 | -10/Materials | Repaired Lgt. Cannon 1291 | -10/Materials | Repaired Lgt. Treads 1318 | -10/Materials | Repaired Ion Engine 1431 | -10/Materials | Central database locked down 1628 | -10/Materials | Discovered new exit (range 15) 1781 | -10/Materials | Entered Mines 2034 | -10/Mines | Deemed a non-threat by the Exiles lab entrance 2034 | -10/Mines | Discovered new exit (range 5) 2091 | -10/Mines | Discovered new exit (range 11) 2181 | -10/Mines | Discovered new exit (range 16) 2257 | -10/Mines | Received a Rocket Launcher from a helpful Derelict 2460 | -10/Mines | Learned Materials garrison access intel 2915 | -10/Mines | Entered Exiles 2939 | -10/Exiles | Discovered new exit (range 15) 2987 | -10/Exiles | Met 8R-AWN 3015 | -10/Exiles | Met EX-HEX 3159 | -10/Exiles | Met EX-DEC 3171 | -10/Exiles | Learned location of Zion (-7) 3199 | -10/Exiles | Met EX-BIN 3236 | -10/Exiles | Aligned with FarCom system 3238 | -10/Exiles | Given EX-Vault access code 3305 | -10/Exiles | Opened EX-Vault 3328 | -10/Exiles | Found Deploy-a-Sentry 3331 | -10/Exiles | Found Deploy-a-Sentry 3334 | -10/Exiles | Found Deploy-a-Sentry 3369 | -10/Exiles | Warned to stay clear of 0b10 Research branches 3441 | -10/Exiles | DAS Turret deployed 3443 | -10/Exiles | DAS Turret deployed 3449 | -10/Exiles | DAS Turret deployed 3451 | -10/Exiles | Attacked by the Exiles 3453 | -10/Exiles | Allies destroyed EX-HEX 3471 | -10/Exiles | Core integrity fell below 50% 3492 | -10/Exiles | Allies destroyed 8R-AWN 3842 | -10/Exiles | Core integrity fell below 20% 3882 | -10/Exiles | Lost 9 parts (1p5n3w) 4389 | -10/Exiles | Destroyed EX-BIN 4636 | -10/Exiles | Build established: Scavenger-Mutant 4672 | -10/Exiles | Destroyed by EX-DEC with AWS/EX-DEC Last Messages --------------- 04547_ Acquired Mak. Power Source. 04552_ Acquired 3 matter. 04556_ Acquired 4 matter. 04563_ Acquired 2 matter. 04579_ System corrupted: IFF burst signal emitted. 04584_ Acquired 1 matter. 04590_ Acquired 13 matter. 04592_ Acquired 3 matter. 04596_ Dropped Aluminum Leg. 04597_ Acquired Mak. Leg. 04601_ ZRCII3JD3Y>UU<%BUFP3QLUJO=I4TLJ 04642_ Dropped Lgt. Neutrino Core. 04642_ Acquired Mak. Power Source. 04646_ Dropped Mak. Power Source. 04646_ Acquired Lgt. Neutrino Core. 04646_ Dropped Mak. Power Source. 04649_ Acquired Mak. Power Source. 04650_ Acquired 22 matter. 04655_ Dropped Mak. Leg. 04655_ Acquired Mak. Leg. Map ----- +----------------------------------------------------+ | ?????????????????????????#"""" ""## | | ?????????????????????????#"" ""#### | | ?????????????????????????#" """"##??# | | ?????????????????????????#""" """#??## | | ?????????????????????????## ""##??#! | | ??????????????????????????#"" """##???#" | | ??????????????????????????##""" ##????#" | | ???????????????????????????##"""" ##?????#!! | | ????????????????????????????### #??????### | | ??????????????????????????????##### ##????????? | | ??????????????????????????????????## #?????????? | | ???????????????????????????????????# #?????????? | | ???????????????????????????????????# =#?????????? | | ???????????????????????????????????#* #?????????? | | ?????????????????????????####??????# #?????????? | | ????????????????????????#""""""????# #?????????? | | ????????????????????????#"""""""???# #?????????? | | ????????????????????????#" """"#??# #?????????? | | ????????????????????????#"" """???# #?????????? | | ?????????????????????????"" ""???# #?????????? | | ???????????????#"""########"""###### ########??? | | ?????????????""" """"""" % "" "" """""""#?"? | | ???????????"""" """"""" %% = "#"" | | ?????????? " | | ?????????? % * " " | | ?????????? c =@ [ * " " | | ??????????" " #"" | | ???????????""" """"" " """" """""#??? | | ????????????####"""###""###"""########"""######??? | | ???????????????" ???#""?"" ""????"" ""??????? | | ???????????????"?????#""#""" ""#??#"" """#?????? | | ??????????????????????"?#" " "#??#"""""""#?????? | | ?????????????????????????"""""""???#"" """"#?????? | | ?????????????????????????"""""""#???""""""???????? | | ???????????????????????????####??????####????????? | | ?????????????????????????????????????????????????? | | ?????????????????????????????????????????????????? | | ?????????????????????????????????????????????????? | | ?????????????????????????????????????????????????? | | | | | | | | | | | | | | | | | | | | | | | +----------------------------------------------------+ Best States ------------- Heat Dissipation 25 Energy Generation 19 Energy Capacity 250 Matter Stores 300 Matter Capacity 300 Sight Range 16 Terrain Scan Density 10 Jamming Range 16 Armor Coverage 150 Evasion (%) 55 Recoil Reduction 2 Item Schematics ----------------- Hcp. Storage Unit | -10/Materials | Hacked Hcp. Matter Pod | -10/Materials | Hacked Lgt. Armor Plating | -10/Materials | Hacked Robot Schematics ------------------ None Fabricated ------------ Nothing Alien Tech Used ----------------- None Achievements -------------- None Challenges ------------ None Game ------ Seed PowerDisruptorSink Manual? 0 Play Time 00:40:33 Cumulative 268.0 hours Start 2023.10.09 @ 19:32:15 End 2023.10.10 @ 15:45:28 Sessions 2 Manual Loads 0 Difficulty Rogue Special Mode None Game No. 153 Rogue 109 Adventurer 44 Explorer 0 Win Type - Total 2 Types 2/0/0/0/0/0/0/0/0 Lore% 61 Gallery% 64 Achievement% 58 Wizard Run 0 Options --------- ASCII 0 Keyboard 1 Movement Vi Keybinds 1 Fullscreen 2 Font 18/X11Bold Map View 76x50 Tactical HUD 1 Map Filters NONE Filters NONE Steam 1 RUN: cbe5d21c-2f71-4e03-b685-1ab74f76de34